Posting Date,Expenditure Area,Supplier Name,Amount,Expense Type,Reason for Expense
03-Jul-19,Corporate Management Team,Premier Inn44529750,395.42, Conference/Seminar Expenses ,Accommodation during LGA conference
25-Jul-19,Culture & Environment Services,484 Office Manager,132.00, Miscellaneous Stock  - Purchases ,Desk for Holywells move
24-Jul-19,Culture & Environment Services,Aldi 13 776,3.72, Materials and Supplies - Miscellaneous ,Water for Staff - Christchurch Hub
05-Jul-19,Culture & Environment Services,Amazon Prime,-0.50, Stationery ,Recharge
05-Jul-19,Culture & Environment Services,Amazon Prime,0.99, Stationery ,Stationery
12-Jul-19,Culture & Environment Services,Amazon.Co.Uk,20.37, Direct Transport Costs ,mouse mat and wireless mouse
15-Jul-19,Culture & Environment Services,Amazon.Co.Uk,11.07, Direct Transport Costs ,HDMI cable
08-Jul-19,Culture & Environment Services,Amazon.Co.Uk,7.50, Equipment / Furniture / Materials ,5 x Cubicle Keys
09-Jul-19,Culture & Environment Services,Amazon.Co.Uk,14.54, Equipment / Furniture / Materials ,Purchase of a 'One 4 All' remote control.
11-Jul-19,Culture & Environment Services,Amazon.Co.Uk,5.28, Equipment / Furniture / Materials ,Memory Sticks - Stonemason Team - Photo storage
22-Jul-19,Culture & Environment Services,Amazon.Co.Uk,27.47, Equipment / Furniture / Materials ,CD's for Summer Holiday Programme - Whitton and Gainsborough
25-Jul-19,Culture & Environment Services,Amazon.Co.Uk,7.62, Equipment / Furniture / Materials ,Air Nozzle - Item never arrived - Damaged- Refunded
09-Jul-19,Culture & Environment Services,Amazon.Co.Uk,7.30, Materials and Supplies - Miscellaneous ,Wipes & plasters for 1st aid box - Christchurch Hub
04-Jul-19,Culture & Environment Services,Amazon.Co.Uk,47.85, Miscellaneous Stock  - Purchases ,x2 Silverline Measuring Wheels - Landscape Team
16-Jul-19,Culture & Environment Services,Amazon.Co.Uk,17.63, Stationery ,Rubber bands for Crem
26-Jul-19,Culture & Environment Services,Amz,-7.62, Equipment / Furniture / Materials ,Refund for Damaged Air Nozzle That Never Arrived
05-Jul-19,Culture & Environment Services,Amz*domu Uk,-26.66, Materials and Supplies - Miscellaneous ,Refund for a upright fan
15-Jul-19,Culture & Environment Services,Amzn Mktp Uk,6.56, Direct Transport Costs ,Adhesive pads
12-Jul-19,Culture & Environment Services,Amznmktplace,4.99, Cleaning Supplies ,screen cleaner
25-Jul-19,Culture & Environment Services,Amznmktplace,16.66, Clothing / Uniform & Laundry ,Chapel Shoes 
01-Jul-19,Culture & Environment Services,Amznmktplace,14.99, Equipment / Furniture / Materials ,Boxing bag holder as new one purchased
02-Jul-19,Culture & Environment Services,Amznmktplace,42.99, Equipment / Furniture / Materials ,Boxing punch bah to replace broken one
05-Jul-19,Culture & Environment Services,Amznmktplace,9.15, Equipment / Furniture / Materials ,Batteries for head set on fitness mic
09-Jul-19,Culture & Environment Services,Amznmktplace,8.43, Equipment / Furniture / Materials ,Brass door hooks
09-Jul-19,Culture & Environment Services,Amznmktplace,23.73, Equipment / Furniture / Materials ,Christmas parties
09-Jul-19,Culture & Environment Services,Amznmktplace,11.23, Equipment / Furniture / Materials ,Replacement Clickers
11-Jul-19,Culture & Environment Services,Amznmktplace,29.17, Equipment / Furniture / Materials ,x1 kwik cricket set for summer holiday activity
18-Jul-19,Culture & Environment Services,Amznmktplace,4.98, Equipment / Furniture / Materials ,Coloured wrist bands for holiday activities
18-Jul-19,Culture & Environment Services,Amznmktplace,3.03, Equipment / Furniture / Materials ,large roll of gaffa duck tape
18-Jul-19,Culture & Environment Services,Amznmktplace,1.57, Equipment / Furniture / Materials ,Pack of cable ties
19-Jul-19,Culture & Environment Services,Amznmktplace,16.66, Equipment / Furniture / Materials ,large fan for office
19-Jul-19,Culture & Environment Services,Amznmktplace,38.32, Equipment / Furniture / Materials ,Skating disco lights
22-Jul-19,Culture & Environment Services,Amznmktplace,13.32, Equipment / Furniture / Materials ,2020 Diaries
22-Jul-19,Culture & Environment Services,Amznmktplace,22.59, Equipment / Furniture / Materials ,Holiday sports equipment
24-Jul-19,Culture & Environment Services,Amznmktplace,79.95, Equipment / Furniture / Materials ,Cans of Spring Water
24-Jul-19,Culture & Environment Services,Amznmktplace,36.66, Equipment / Furniture / Materials ,first aid for school holiday programm
24-Jul-19,Culture & Environment Services,Amznmktplace,69.32, Equipment / Furniture / Materials ,Summer holiday equipment
25-Jul-19,Culture & Environment Services,Amznmktplace,50.85, Equipment / Furniture / Materials ,Summer holiday equipment
25-Jul-19,Culture & Environment Services,Amznmktplace,9.22, Equipment / Furniture / Materials ,Summer holiday equipment - Cricket Set
25-Jul-19,Culture & Environment Services,Amznmktplace,4.99, Equipment / Furniture / Materials ,Summer Holiday Equipment - Draughts
25-Jul-19,Culture & Environment Services,Amznmktplace,12.49, Equipment / Furniture / Materials ,Summer holiday equipment - Jumbo Tennis
09-Jul-19,Culture & Environment Services,Amznmktplace,15.82, Materials and Supplies - Miscellaneous ,240 labels for holywells stables and shop.
01-Jul-19,Culture & Environment Services,Amznmktplace Amazon.Co.Uk,34.14, Equipment / Furniture / Materials ,Pom Poms for Chearleading/Dance Sessions - Summer Holidays
08-Jul-19,Culture & Environment Services,Amznmktplace Amazon.Co.Uk,32.47, Materials and Supplies - Miscellaneous ,Upright fan - Christchurch Park
08-Jul-19,Culture & Environment Services,Amznmktplace Amazon.Co.Uk,19.99, Stationery ,Laminator for Gipping House office
11-Jul-19,Culture & Environment Services,Anchor Safety Llp,53.25, Clothing / Uniform & Laundry ,Trousers
25-Jul-19,Culture & Environment Services,Anchor Safety Llp,33.75, Clothing / Uniform & Laundry ,Boots for volunteer
10-Jul-19,Culture & Environment Services,Anglia Tool Centre,570.57, Miscellaneous Stock  - Purchases ,laser level for play area equipment installations
22-Jul-19,Culture & Environment Services,Anglia Tool Centre,184.41, Miscellaneous Stock  - Purchases ,Various tools & paint marking - Landscape Team
11-Jul-19,Culture & Environment Services,Anglian Water,587.28, Equipment / Furniture / Materials ,Anglian Water Standpipe Hire + hose purchase
11-Jul-19,Culture & Environment Services,Anglian Water,587.28, Non Contracted_Professional Services ,Anglian Water Standpipe Hire + hose purchase
29-Jul-19,Culture & Environment Services,Ao Retail Limited,128.33, Equipment / Furniture / Materials ,Replacement Fridge - Crematorium - Removal of Old Fridge
18-Jul-19,Culture & Environment Services,Argos Ltd,45.82, Equipment / Furniture / Materials ,Microwave for crew room
11-Jul-19,Culture & Environment Services,Argos Ltd,9.99, Materials and Supplies - Miscellaneous ,Clock for centre - Christchurch Hub
12-Jul-19,Culture & Environment Services,Argos Ltd,9.99, Materials and Supplies - Miscellaneous ,Phone charger - Christchurch Hub
29-Jul-19,Culture & Environment Services,Argos Retail Group,41.66, Equipment / Furniture / Materials ,Batteries/Charger for headmics and Scales for Gym
29-Jul-19,Culture & Environment Services,Argos Warren Heath,-12.50, Equipment / Furniture / Materials ,Refund due to duplication of order
11-Jul-19,Culture & Environment Services,Asda Stores 4278,5.50, Miscellaneous Expenses ,Screenwash conc 2.5l 2.50 & 3xsquash 3 (refreshments vols)
24-Jul-19,Culture & Environment Services,Asda Superstore,6.37, Equipment / Furniture / Materials ,Arts and crafts equipment
18-Jul-19,Culture & Environment Services,Avolities Ltd,58.00, Equipment / Furniture / Materials ,Keys for sound desk
03-Jul-19,Culture & Environment Services,B & M Retail,0.57, Catering/Beverages ,Milk 50+
10-Jul-19,Culture & Environment Services,B & M Retail,13.38, Equipment / Furniture / Materials ,Purchase of decorating products for the tech office
29-Jul-19,Culture & Environment Services,B & M Retail,9.97, Equipment / Furniture / Materials ,Air freshners
08-Jul-19,Culture & Environment Services,B & Q 1315,66.67, Clothing / Uniform & Laundry ,Trousers - Landscape Team
04-Jul-19,Culture & Environment Services,B & Q 1315,51.49, Equipment / Furniture / Materials ,Masonry Team Supplies - Trowel/F Clamps/Line
08-Jul-19,Culture & Environment Services,B & Q 1315,3.87, Equipment / Furniture / Materials ,Socket Set - Play Area Inspector
10-Jul-19,Culture & Environment Services,B & Q 1315,33.33, Equipment / Furniture / Materials ,"2 x RCD's, 2 x 6 gang extensions for aqua skis and scooters."
24-Jul-19,Culture & Environment Services,B & Q 1315,20.17, Equipment / Furniture / Materials ,Cement - MARYON ROAD PLAY AREA - Play Inspector
25-Jul-19,Culture & Environment Services,B & Q 1315,25.00, Equipment / Furniture / Materials ,1 Fan For Fore Reception to combat 35 Celciues Heat
10-Jul-19,Culture & Environment Services,B & Q 1315,53.50, Fixtures & Fittings ,Paint & Rollers for redecoration of technical office
01-Jul-19,Culture & Environment Services,B & Q 1315,8.32, Materials and Supplies - Miscellaneous ,1 X Trowel
26-Jul-19,Culture & Environment Services,B & Q 1315,30.00, Materials and Supplies - Miscellaneous ,Ronseal one coat 4 fencing - Christchurch Hub
31-Jul-19,Culture & Environment Services,B & Q 1315,27.00, Materials and Supplies - Miscellaneous ,5 x Hedge Sheers
17-Jul-19,Culture & Environment Services,B & Q 1315,64.62, Miscellaneous Stock  - Purchases ,Cement - JUBILEE PARK PLAY AREA - Landscape Team
24-Jul-19,Culture & Environment Services,B & Q 1315,280.83, Miscellaneous Stock  - Purchases ,cement for maple park
26-Jul-19,Culture & Environment Services,B & Q 1315,199.17, Miscellaneous Stock  - Purchases ,Cement - JUBILEE PARK PLAY AREA
30-Jul-19,Culture & Environment Services,B & Q 1315,11.67, Miscellaneous Stock  - Purchases ,Plywood for signs - JUBILEE PARK PLAY AREA - Play Area Insp
08-Jul-19,Culture & Environment Services,B&m Retail Ltd,10.82, Equipment / Furniture / Materials ,Toolbag - Play Area Inspector
01-Jul-19,Culture & Environment Services,Bag Agg Ltd,37.50, Materials and Supplies - Miscellaneous ,15 x 20M Ballast
08-Jul-19,Culture & Environment Services,Bag Agg Ltd,81.60, Materials and Supplies - Miscellaneous ,type 1 for jubilee park
01-Jul-19,Culture & Environment Services,Bag Agg Ltd,100.00, Miscellaneous Stock  - Purchases ,Ballast - JUBILEE PARK PLAY AREA - Landscape Team
24-Jul-19,Culture & Environment Services,Bag Agg Ltd,100.00, Miscellaneous Stock  - Purchases ,Ballast - JUBILEE PARK PLAY AREA
26-Jul-19,Culture & Environment Services,Bag Agg Ltd,100.00, Miscellaneous Stock  - Purchases ,Ballast - JUBILEE PARK PLAY AREA
04-Jul-19,Culture & Environment Services,Bartram Mowers Limited,245.83, Equipment / Furniture / Materials ,Shred N Vac - Park Patrol
18-Jul-19,Culture & Environment Services,Bishop Sports & Leisur,291.95, Equipment / Furniture / Materials ,Archery equipment/targets
10-Jul-19,Culture & Environment Services,Bolton Stores,5.19, Miscellaneous Stock  - Purchases ,Batteries - JUBILEE PARK PLAY AREA
04-Jul-19,Culture & Environment Services,Booker Limited Ipswich,157.92, Catering/Beverages ,"Food for Sports Centres Packed Lunches, Tspoons"
04-Jul-19,Culture & Environment Services,Booker Limited Ipswich,49.27, Catering/Beverages ,"Food for Sports Centres Packed Lunches, Tspoons"
04-Jul-19,Culture & Environment Services,Booker Limited Ipswich,14.36, Catering/Beverages ,"Food for Sports Centres Packed Lunches, Tspoons"
17-Jul-19,Culture & Environment Services,Booker Limited Ipswich,188.78, Catering/Beverages ,Crisps etc for corn exchange
05-Jul-19,Culture & Environment Services,Booker Limited Ipswich,28.68, Equipment / Furniture / Materials ,Water for crews
26-Jul-19,Culture & Environment Services,Booker Limited Ipswich,36.83, Equipment / Furniture / Materials ,Water for operatives
04-Jul-19,Culture & Environment Services,Booker Limited Ipswich,35.76, Materials and Supplies - Miscellaneous ,"Food for Sports Centres Packed Lunches, Tspoons"
04-Jul-19,Culture & Environment Services,Booker Limited Ipswich,33.46, Materials and Supplies - Miscellaneous ,Water for staff - Holywells Hub
23-Jul-19,Culture & Environment Services,Booker Limited Ipswich,44.30, Materials and Supplies - Miscellaneous ,Bottles of Mineral Water
23-Jul-19,Culture & Environment Services,Booker Limited Ipswich,47.80, Materials and Supplies - Miscellaneous ,Water for Park Patrol Staff
31-Jul-19,Culture & Environment Services,Booker Limited Ipswich,50.19, Materials and Supplies - Miscellaneous ,Water for staff - Park Patrol
26-Jul-19,Culture & Environment Services,Boots 1833,2.80, Employee Expenses ,Diabetes glucous sweets
01-Jul-19,Culture & Environment Services,Buildbase - Ipswich,144.00, Materials and Supplies - Miscellaneous ,fencing rails (Martlesham Common)
29-Jul-19,Culture & Environment Services,Buildbase - Ipswich,108.50, Materials and Supplies - Miscellaneous ,timber for path edging - Sproughton
02-Jul-19,Culture & Environment Services,Bunzl,57.53, Cleaning Supplies ,Cleaning supplies
04-Jul-19,Culture & Environment Services,Bunzl,165.67, Cleaning Supplies ,Cleaning Supplies & Toilet roll for Old foundry toilets
04-Jul-19,Culture & Environment Services,Bunzl,157.00, Cleaning Supplies ,Toilet roll & cleaning supplies for Holywells park toilets
05-Jul-19,Culture & Environment Services,Bunzl,12.00, Cleaning Supplies ,Bleach for Masonry team
23-Jul-19,Culture & Environment Services,Bunzl,46.86, Cleaning Supplies ,Toilet Roll HWP
24-Jul-19,Culture & Environment Services,Bunzl,68.67, Cleaning Supplies ,Cleaning Products - Christchurch Park
15-Jul-19,Culture & Environment Services,Buyabattery Co Uk,52.99, Equipment / Furniture / Materials ,Purchase of batteries for microphones and general use
15-Jul-19,Culture & Environment Services,Buyabattery Co Uk,52.99, Equipment / Furniture / Materials ,Purchase of batteries for microphones and general use
23-Jul-19,Culture & Environment Services,C Brewer & Sons,101.04, Miscellaneous Stock  - Purchases ,Paint & Brushes - JUBILEE PARK PLAY AREA
31-Jul-19,Culture & Environment Services,Clarke Fencing Ltd,118.54, Materials and Supplies - Miscellaneous ,timber path edging (Sproughton)
29-Jul-19,Culture & Environment Services,Clearaway Recycling,183.33, Miscellaneous Stock  - Purchases ,Skip Hire - HORNDON ON THE HILL
10-Jul-19,Culture & Environment Services,Cobblers And Keys Ltd,40.00, Materials and Supplies - Miscellaneous ,Keys for park toilets
12-Jul-19,Culture & Environment Services,Collier&catchpole,118.32, Equipment / Furniture / Materials ,"Slabs / Post Mix - Retaining Wall Section ""O"""
26-Jul-19,Culture & Environment Services,Collier&catchpole,169.50, Equipment / Furniture / Materials ,Slabs/Cement - Graves & Masonry Team
15-Jul-19,Culture & Environment Services,Collier&catchpole,55.68, Materials and Supplies - Miscellaneous ,cement for jubilee
01-Jul-19,Culture & Environment Services,Collier&catchpole,104.40, Miscellaneous Stock  - Purchases ,Fast Set Cement - JUBILEE PARK PLAY AREA - Landscape Team
01-Jul-19,Culture & Environment Services,Collier&catchpole,185.00, Miscellaneous Stock  - Purchases ,Geotextile Multitrack - JUBILEE PARK PLAY AREA - Landscape T
01-Jul-19,Culture & Environment Services,Collier&catchpole,63.00, Miscellaneous Stock  - Purchases ,Kerb edging - JUBILEE PARK PLAY AREA - Landscape Team
08-Jul-19,Culture & Environment Services,Collier&catchpole,154.50, Miscellaneous Stock  - Purchases ,Cement - JUBILEE PARK PLAY AREA - Landscape Team
09-Jul-19,Culture & Environment Services,Collier&catchpole,221.20, Miscellaneous Stock  - Purchases ,x56 bags of cement - Landscape Team
11-Jul-19,Culture & Environment Services,Collier&catchpole,185.00, Miscellaneous Stock  - Purchases ,Geotextile - JUBILEE PARK PLAY AREA
18-Jul-19,Culture & Environment Services,Collier&catchpole,204.40, Miscellaneous Stock  - Purchases ,Pallet of cement - JUBILEE PARK PLAY AREA
23-Jul-19,Culture & Environment Services,Collier&catchpole,65.03, Miscellaneous Stock  - Purchases ,for maple paRK
24-Jul-19,Culture & Environment Services,Collier&catchpole,204.40, Miscellaneous Stock  - Purchases ,Pallet of cement - HORNDON ON THE HILL
08-Jul-19,Culture & Environment Services,Costa Coffee,5.17, Miscellaneous Expenses ,Refreshments meeting
01-Jul-19,Culture & Environment Services,Cps Fuels Ltd,513.19, Parks Vehicle Costs ,Red Diesel for WSC
09-Jul-19,Culture & Environment Services,Cps Fuels Ltd,-11.73, Parks Vehicle Costs ,Red Diesel
23-Jul-19,Culture & Environment Services,Cpw Locksmiths And Securi,145.83, Equipment / Furniture / Materials ,Replacement key press and key cutting
12-Jul-19,Culture & Environment Services,Cpw Locksmiths And Securi,49.17, Materials and Supplies - Miscellaneous ,Padlock and keys
02-Jul-19,Culture & Environment Services,Cs-Catering-Eq,131.66, Equipment / Furniture / Materials ,Urn
24-Jul-19,Culture & Environment Services,Currys,133.32, Miscellaneous Stock  - Purchases ,Fridge Freezer - Christchurch Park Hub
16-Jul-19,Culture & Environment Services,Dale Sauna Ltd,342.93, Cleaning Supplies ,pool chemicals
11-Jul-19,Culture & Environment Services,Decathlon UK Vad,49.95, Equipment / Furniture / Materials ,x6 kids squash rackets for summer holidays - racket sports
19-Jul-19,Culture & Environment Services,Decathlon UK Vad,34.95, Equipment / Furniture / Materials ,Junior tennis racquets
22-Jul-19,Culture & Environment Services,Decathlon UK Vad,49.90, Equipment / Furniture / Materials ,Holiday athletics equipment
08-Jul-19,Culture & Environment Services,Disclosure And Barring,20.83, Training/Courses Running Costs ,DBS
10-Jul-19,Culture & Environment Services,Display Wizard Ltd,60.00, Equipment / Furniture / Materials ,Tensa Barriers for Crown Pools - Summer Holidays
12-Jul-19,Culture & Environment Services,Displaysense.Co.Uk,147.27, Advertising/Publicity ,FoH leaflet rack
02-Jul-19,Culture & Environment Services,Dvla Vehicle Tax,"1,330.50", Direct Transport Costs ,Vehicle tax for AV13 OPN
02-Jul-19,Culture & Environment Services,Dvla Vehicle Tax,262.50, Direct Transport Costs ,Vehicle Tax for AV13 VBD
02-Jul-19,Culture & Environment Services,Dvla Vehicle Tax,722.50, Direct Transport Costs ,Vehicle Tax for AY04 LBZ
02-Jul-19,Culture & Environment Services,Dvla Vehicle Tax,262.50, Direct Transport Costs ,Vehicle Tax for BP07 LGA
02-Jul-19,Culture & Environment Services,Dvla Vehicle Tax,142.50, Parks Vehicle Costs ,Vehicle Tax for AY56 VKD
10-Jul-19,Culture & Environment Services,Dvla Vehicle Tax,237.50, Parks Vehicle Costs ,Vehicle Tax for AP06 SKJ
10-Jul-19,Culture & Environment Services,Dvla Vehicle Tax,237.50, Parks Vehicle Costs ,Vehicle Tax for AP06 SMO
10-Jul-19,Culture & Environment Services,Dvla Vehicle Tax,237.50, Parks Vehicle Costs ,Vehicle Tax for AP06 SOA
12-Jul-19,Culture & Environment Services,Dvla Vehicle Tax,262.50, Parks Vehicle Costs ,Vehicle Tax for GV12 SWJ
11-Jul-19,Culture & Environment Services,Dyer Welding Services,95.00, Materials and Supplies - Miscellaneous ,Container Modifications
22-Jul-19,Culture & Environment Services,Ellenbrook,64.92, Direct Transport Costs ,"59.51l diesel DY56VKD, 20.53l petrol jerry can for machinery"
22-Jul-19,Culture & Environment Services,Ellenbrook,21.88, Direct Transport Costs ,"59.51l diesel DY56VKD, 20.53l petrol jerry can for machinery"
24-Jul-19,Culture & Environment Services,Ellenbrook,66.67, Direct Transport Costs ,diesel fuel GV12 SWJ
09-Jul-19,Culture & Environment Services,Eoe Co-Op,4.00, Miscellaneous Stock  - Purchases ,Water for staff - Landscape Team
11-Jul-19,Culture & Environment Services,Essentialaids.Com Ltd,273.98, Equipment / Furniture / Materials ,Replacement pool safe wheelchair
18-Jul-19,Culture & Environment Services,Eveque Leisure Equipment,100.10, Equipment / Furniture / Materials ,Junior athletic equipment
05-Jul-19,Culture & Environment Services,Farmfoods- Ipswich,3.32, Miscellaneous Stock  - Purchases ,Water for staff - Landscape Team
08-Jul-19,Culture & Environment Services,Farmfoods- Ipswich,6.63, Miscellaneous Stock  - Purchases ,Water for staff - Landscape Team
12-Jul-19,Culture & Environment Services,Farmfoods- Ipswich,3.40, Miscellaneous Stock  - Purchases ,Water for staff - Landscape Team
25-Jul-19,Culture & Environment Services,Farmfoods- Ipswich,6.63, Miscellaneous Stock  - Purchases ,Water for staff - JUBILEE PARK PLAY AREA
26-Jul-19,Culture & Environment Services,Fast Key Services Limi,21.82, Equipment / Furniture / Materials ,Keys back stage desks from corn exchange
31-Jul-19,Culture & Environment Services,Filplastic UK Ltd,171.76, Equipment / Furniture / Materials , Shop
22-Jul-19,Culture & Environment Services,Findel Education,104.99, Equipment / Furniture / Materials ,New Age Boccia Kit
31-Jul-19,Culture & Environment Services,Firstaid4less.Co.Uk,31.25, Equipment / Furniture / Materials ,eyewash stations for Fore St
23-Jul-19,Culture & Environment Services,Floorstock,70.03, Cleaning Supplies ,Bona Cleaner for Grand Hall floor
15-Jul-19,Culture & Environment Services,Greenblue Urban Limited,"1,318.46", Miscellaneous Stock  - Purchases ,Maple Park root directors
01-Jul-19,Culture & Environment Services,Groundsman Tools And Supp,119.67, Materials and Supplies - Miscellaneous ,Strimmer heads - Holywells Hub
26-Jul-19,Culture & Environment Services,Halfords 0883,57.91, Equipment / Furniture / Materials ,Socket Set - Play Inspector
24-Jul-19,Culture & Environment Services,Halfords 0883,12.49, Miscellaneous Stock  - Purchases ,TOWING MIRROR - Landscape Team
09-Jul-19,Culture & Environment Services,Hamabeads.Com,1.67, Equipment / Furniture / Materials ,Christmas parties
30-Jul-19,Culture & Environment Services,Hg Gladwell & Sons,52.07, Materials and Supplies - Miscellaneous ,20kg of Duck Food and 25kg Peanut Kernel?s
30-Jul-19,Culture & Environment Services,Hg Gladwell & Sons,45.30, Materials and Supplies - Miscellaneous ,x4 sacks of Duck food
08-Jul-19,Culture & Environment Services,Hobbycraft,4.79, Miscellaneous Stock  - Purchases ,Pens - Landscape Team
30-Jul-19,Culture & Environment Services,Homebase,53.50, Miscellaneous Stock  - Purchases ,Paint & Brushes - HORNDON ON THE HILL
05-Jul-19,Culture & Environment Services,Horticultural Sppls Ltd,7.63, Materials and Supplies - Miscellaneous ,Bug clear ultra concentrate - CROWN POOL - Christchurch Hub
11-Jul-19,Culture & Environment Services,Hussey Knights Ltd,24.33, Miscellaneous Stock  - Purchases ,A-0 Plans to scale with for play equipment installation
24-Jul-19,Culture & Environment Services,Hussey Knights Ltd,11.83, Miscellaneous Stock  - Purchases ,Site Plans - HORNDON ON THE HILL
10-Jul-19,Culture & Environment Services,Iceland,1.67, Materials and Supplies - Miscellaneous ,Washing up liquid - Christchurch Hub
16-Jul-19,Culture & Environment Services,Id And C UK Ltd,833.33, Printing Costs ,Vehicle passed Ed Concert
26-Jul-19,Culture & Environment Services,Indespension,16.05, Direct Transport Costs ,Light board for trailer - Christchurch Hub
12-Jul-19,Culture & Environment Services,Indespension,59.90, Materials and Supplies - Miscellaneous ,Green pin DEE shackles & Red Roundslip 1m - 20m
31-Jul-19,Culture & Environment Services,Ispwich Ranso,9.33, Equipment / Furniture / Materials ,cabin hook x 2
03-Jul-19,Culture & Environment Services,Ispwich Ranso,15.00, Miscellaneous Stock  - Purchases ,Ballast - JUBILEE PARK PLAY AREA - Landscape Team
05-Jul-19,Culture & Environment Services,J P Lennard Ltd,841.96, Equipment / Furniture / Materials ,"Wristbands, games accessories-summer holidays-Crown Pools"
05-Jul-19,Culture & Environment Services,J P Lennard Ltd,25.50, Equipment / Furniture / Materials ,"Wristbands, games accessories-summer holidays-Crown Pools"
23-Jul-19,Culture & Environment Services,J P Lennard Ltd,107.45, Equipment / Furniture / Materials ,Tyvex Wristbands.
01-Jul-19,Culture & Environment Services,Johnstones Decorating,127.55, Materials and Supplies - Miscellaneous ,Paint for jubilee park
26-Jul-19,Culture & Environment Services,Kent Blaxill And C,65.87, Miscellaneous Stock  - Purchases ,Paint & Brushes - HORNDON ON THE HILL
08-Jul-19,Culture & Environment Services,Laurel Farm,179.23, Materials and Supplies - Miscellaneous ,Plants for CCP flower bedding - Christchurch Park
24-Jul-19,Culture & Environment Services,Lockshopwarehouse,71.50, Materials and Supplies - Miscellaneous ,Abus Locks
03-Jul-19,Culture & Environment Services,Lumberjacks,-36.67, Miscellaneous Stock  - Purchases ,Refund for a sawn - Landscape Team
03-Jul-19,Culture & Environment Services,Lumberjacks,70.00, Miscellaneous Stock  - Purchases ,Timber - JUBILEE PARK PLAY AREA - Landscape Team
08-Jul-19,Culture & Environment Services,Machine Mart Ltd,4.98, Equipment / Furniture / Materials ,Clickers for events general
31-Jul-19,Culture & Environment Services,Machine Mart Ltd,8.99, Miscellaneous Stock  - Purchases ,Grinder discs - Landscape Team
16-Jul-19,Culture & Environment Services,Machine Mart Web,78.91, Equipment / Furniture / Materials ,Tally counters for events x 30
31-Jul-19,Culture & Environment Services,Machine Mart Web,18.56, Equipment / Furniture / Materials ,PPE and hand tools to use with Standpipe
31-Jul-19,Culture & Environment Services,Machine Mart Web,18.56, Non Contracted_Professional Services ,PPE and hand tools to use with Standpipe
25-Jul-19,Culture & Environment Services,Medisave,7.30, Materials and Supplies - Miscellaneous ,Reusable ice packs.
30-Jul-19,Culture & Environment Services,Mpd - Ipswich 03,24.74, Parks Vehicle Costs ,Oil for Transits
11-Jul-19,Culture & Environment Services,Net World Sports,101.53, Equipment / Furniture / Materials ,"rounders sets, cones, bibs, bags and badminton nets"
18-Jul-19,Culture & Environment Services,Newitts.Com,207.66, Equipment / Furniture / Materials ,"Rounders, cricket and summer hols eqp."
19-Jul-19,Culture & Environment Services,Newitts.Com,299.96, Equipment / Furniture / Materials ,Summer Holiday Dodge Balls
29-Jul-19,Culture & Environment Services,Paypal,30.65, Advertising/Publicity ,No smoking sign for venue
08-Jul-19,Culture & Environment Services,Paypal,256.94, Clothing / Uniform & Laundry ,"Ladies chain saw trousers, wire mesh visor Hygiene Kit"
10-Jul-19,Culture & Environment Services,Paypal,6.66, Fixtures & Fittings ,Purchase of eyelet rings for repairs to stage unit curtains
08-Jul-19,Culture & Environment Services,Paypal,286.53, Materials and Supplies - Miscellaneous ,Chipper blade to fit Jensen A540
16-Jul-19,Culture & Environment Services,Platipus Anchors L,279.35, Miscellaneous Stock  - Purchases ,Maple Park tree anchors
31-Jul-19,Culture & Environment Services,Poundland Ltd 1344,8.33, Equipment / Furniture / Materials ,arts and crafts
05-Jul-19,Culture & Environment Services,Poundland Ltd 1719,1.67, Equipment / Furniture / Materials ,batteries - remote/clock
15-Jul-19,Culture & Environment Services,Poundland Ltd 1719,3.33, Equipment / Furniture / Materials ,Incontinence swimwear
22-Jul-19,Culture & Environment Services,Prospec Ltd,264.00, Equipment / Furniture / Materials ,locker and cubicle locks
22-Jul-19,Culture & Environment Services,Ridgeons Ipswich,48.70, Miscellaneous Stock  - Purchases ,Cement - JUBILEE PARK PLAY AREA
11-Jul-19,Culture & Environment Services,Rs Components,39.33, Equipment / Furniture / Materials ,ear plugs events
25-Jul-19,Culture & Environment Services,Rs Components,10.95, Equipment / Furniture / Materials ,"5 amp fuses next day, for facilities "
31-Jul-19,Culture & Environment Services,Rs Components,19.87, Equipment / Furniture / Materials ,10 Pin cable ends for conference system repairs
15-Jul-19,Culture & Environment Services,Ryman,14.97, Equipment / Furniture / Materials ,Tally counter and note book Mela
24-Jul-19,Culture & Environment Services,Ryman,48.02, Stationery ,1 4 holed A3 Ring Binder 4 hole hole punch 1 box for GDPR
04-Jul-19,Culture & Environment Services,Sainsburys S/mkt,28.33, Miscellaneous Expenses ,Films for Open Air Cinema event
05-Jul-19,Culture & Environment Services,Sainsburys S/mkts,5.60, Catering/Beverages ,Lemons for Bars
11-Jul-19,Culture & Environment Services,Sainsburys S/mkts,5.40, Catering/Beverages ,Food for Conference 51103
22-Jul-19,Culture & Environment Services,Sainsburys S/mkts,5.70, Catering/Beverages ,Lemons for Bars
25-Jul-19,Culture & Environment Services,Sainsburys S/mkts,5.25, Catering/Beverages ,Dietary foods for sports centres pack lunches
24-Jul-19,Culture & Environment Services,Sainsburys S/mkts,20.00, Miscellaneous Expenses ,4 x Films for Summer Cinema Family Fun Day
04-Jul-19,Culture & Environment Services,Screens-R-Us-Limited,60.00, Direct Transport Costs ,Fitted Glass to AV62 WMD
16-Jul-19,Culture & Environment Services,Screens-R-Us-Limited,252.00, Direct Transport Costs ,O/S FRONT VENT REPLACED AV13OPL
11-Jul-19,Culture & Environment Services,Screwfix Dir. Ltd,26.64, Miscellaneous Stock  - Purchases ,Level & knee pads - Christchurch Park
25-Jul-19,Culture & Environment Services,Screwfix Direct Lt,72.47, Equipment / Furniture / Materials ,Repairing play equipment
25-Jul-19,Culture & Environment Services,Screwfix Direct Lt,50.81, Equipment / Furniture / Materials ,Set levels - JUBILEE PARK PLAY AREA - Play Inspector
26-Jul-19,Culture & Environment Services,Screwfix Direct Lt,17.90, Equipment / Furniture / Materials ,Drill bits - Play Area Inspector
17-Jul-19,Culture & Environment Services,Secure Haven Urns & Ke,307.95, Goods for Resale - Bereavement ,jewellery for ashes
23-Jul-19,Culture & Environment Services,Shell Ranelagh 390,8.35, Equipment / Furniture / Materials ,Petrol pick up drawers corn exchange
05-Jul-19,Culture & Environment Services,Shell Ranelagh 390,70.06, Parks Vehicle Costs ,Diesel - Christchurch Hub
22-Jul-19,Culture & Environment Services,Shell Whitehouse,8.35, Equipment / Furniture / Materials ,"Petrol,  dump run wood in car park"
23-Jul-19,Culture & Environment Services,Shop.Swimming.Org,137.80, Equipment / Furniture / Materials ,swim course badges
29-Jul-19,Culture & Environment Services,Skatepro Aps,65.83, Equipment / Furniture / Materials ,Laces for rollerskates - Whittom and Gainsborough
22-Jul-19,Culture & Environment Services,Skiphirecomparison Ltd,213.00, Miscellaneous Stock  - Purchases ,8yd skip hire - HORNDON ON THE HILL
19-Jul-19,Culture & Environment Services,Sovereign Turf Ltd,401.80, Miscellaneous Stock  - Purchases ,164 square metres of turf - JUBILEE PARK PLAY AREA
02-Jul-19,Culture & Environment Services,Sp * Olive & Sage Ltd,15.83, Materials and Supplies - Miscellaneous ,Ornament for RDVC - Christchurch Hub
12-Jul-19,Culture & Environment Services,Sp * Winchshop,113.22, Materials and Supplies - Miscellaneous ,Green pin DEE shackles & Red Round sling
18-Jul-19,Culture & Environment Services,Sportsdirect 366,23.57, Equipment / Furniture / Materials ,Safety boots 
12-Jul-19,Culture & Environment Services,Sportsdirect 366,12.50, Materials and Supplies - Miscellaneous ,Whistles - Park Patrol
15-Jul-19,Culture & Environment Services,Sportsdirect.Com,18.32, Equipment / Furniture / Materials ,x12 foam balls for short tennis sessions
22-Jul-19,Culture & Environment Services,Sportsdirect.Com,55.74, Equipment / Furniture / Materials ,Football for Summer Holiday Programme
24-Jul-19,Culture & Environment Services,Sportsdirect.Com,-5.82, Equipment / Furniture / Materials ,Refund of delivery charges for footballs
08-Jul-19,Culture & Environment Services,Sq *combat2coffee,450.00, Equipment / Furniture / Materials ,Refreshments for Armed Forces Day on Thursday 27th June 2019
31-Jul-19,Culture & Environment Services,Stateside Skates Ltd,640.00, Equipment / Furniture / Materials ,Rollerskates for Summer Hols - WSC/GSC
31-Jul-19,Culture & Environment Services,Stateside Skates Ltd,208.00, Equipment / Furniture / Materials ,Rollerskates for Summer Hols - WSC/GSC
17-Jul-19,Culture & Environment Services,Stuart Canvas Ltd,180.00, Miscellaneous Stock  - Purchases ,Gusford Primary sand pit cover
17-Jul-19,Culture & Environment Services,Suffolk County Council,9.17, Holding A/C - General Use ,Death Certficiate
17-Jul-19,Culture & Environment Services,Suffolk County Council,11.00, Holding A/C - General Use ,Death Certificate
17-Jul-19,Culture & Environment Services,Suffolk County Council,9.17, Holding A/C - General Use ,Death certificate
19-Jul-19,Culture & Environment Services,Suffolk County Council,11.00, Holding A/C - General Use ,death certificate
19-Jul-19,Culture & Environment Services,Suffolk County Council,11.00, Holding A/C - General Use ,Death Certificate
30-Jul-19,Culture & Environment Services,Suffolk County Council,11.00, Holding A/C - General Use ,death certificate
30-Jul-19,Culture & Environment Services,Suffolk County Council,9.17, Holding A/C - General Use ,Death Certificate
24-Jul-19,Culture & Environment Services,Suffolk County Council,50.00, Miscellaneous Expenses ,Crafted Classique Road Closure Application
24-Jul-19,Culture & Environment Services,Suffolk County Council,50.00, Miscellaneous Expenses ,Maritime Road Closure Application
09-Jul-19,Culture & Environment Services,Suffolk County Council,25.00, Non Contracted_Professional Services ,Skip licence for wastesaver
18-Jul-19,Culture & Environment Services,Suffolk County Council,25.00, Non Contracted_Professional Services ,Skip Licence for Wastesaver
17-Jul-19,Culture & Environment Services,Swatch Group UK Ltd Dc,66.00, Equipment / Furniture / Materials ,battery for gala equipment
08-Jul-19,Culture & Environment Services,Tesco Store 3240,87.29, Catering/Beverages ,Food for Party
08-Jul-19,Culture & Environment Services,Tesco Store 3240,20.50, Catering/Beverages ,Food for Party
10-Jul-19,Culture & Environment Services,Tesco Store 3240,25.85, Catering/Beverages ,51141
10-Jul-19,Culture & Environment Services,Tesco Store 3240,4.17, Catering/Beverages ,51141
11-Jul-19,Culture & Environment Services,Tesco Store 3240,3.00, Catering/Beverages ,Food for conference 51103 and lemons for bars
11-Jul-19,Culture & Environment Services,Tesco Store 3240,78.24, Catering/Beverages ,Food for conference 51103 and lemons for bars
11-Jul-19,Culture & Environment Services,Tesco Store 3240,1.25, Catering/Beverages ,Food for conference 51103 and lemons for bars
25-Jul-19,Culture & Environment Services,Tesco Store 3240,120.43, Catering/Beverages ,Food for Sports Centre Pack Lunches
10-Jul-19,Culture & Environment Services,The Post Office,2.50, Equipment / Furniture / Materials ,Postage of 2 way radio's for repair
24-Jul-19,Culture & Environment Services,The Range,9.99, Equipment / Furniture / Materials ,Arts and crafts equipment
04-Jul-19,Culture & Environment Services,The Range,4.16, Fixtures & Fittings ,Multi-purpose sealant
19-Jul-19,Culture & Environment Services,The Range,13.31, Materials and Supplies - Miscellaneous ,Knife blades - REPAIR @HOLYWELLS - Play Area Inspector
01-Jul-19,Culture & Environment Services,The Range,2.94, Stationery ,Stationery
17-Jul-19,Culture & Environment Services,The Ribbon Company,28.95, Miscellaneous Stock  - Purchases ,Ribbon - JUBILEE PARK PLAY AREA
17-Jul-19,Culture & Environment Services,The Windscreen Co,145.00, Parks Vehicle Costs ,Rear Screen
04-Jul-19,Culture & Environment Services,Three-Billpay(Cc),262.62, Specialist Line Rentals ,Payment of 'Three' bill that was not put through Agresso
31-Jul-19,Culture & Environment Services,Timpson,8.33, Equipment / Furniture / Materials ,Keys for shows office
30-Jul-19,Culture & Environment Services,Timpson Ltd,12.29, Miscellaneous Expenses ,Tech Office keys cut 
17-Jul-19,Culture & Environment Services,Tippers R Us,160.00, Miscellaneous Stock  - Purchases ,Grab Load muck away - JUBILEE PARK PLAY AREA
17-Jul-19,Culture & Environment Services,Tippers R Us,833.33, Miscellaneous Stock  - Purchases ,Grab Load muck away - JUBILEE PARK PLAY AREA
17-Jul-19,Culture & Environment Services,Tippers R Us,833.33, Miscellaneous Stock  - Purchases ,Grab Load muck away - JUBILEE PARK PLAY AREA
17-Jul-19,Culture & Environment Services,Tippers R Us,833.33, Miscellaneous Stock  - Purchases ,Grab Load muck away - JUBILEE PARK PLAY AREA
24-Jul-19,Culture & Environment Services,Tony Bates Haulage,166.67, Miscellaneous Stock  - Purchases ,Ballast - HORNDON ON THE HILL
10-Jul-19,Culture & Environment Services,Toolstation Ltd,6.47, Equipment / Furniture / Materials ,"Angle grinder, wrench, screwdriver - Play Area Inspector"
29-Jul-19,Culture & Environment Services,Toolstation Ltd,61.97, Miscellaneous Stock  - Purchases ,Studs & resin - JUBILEE PARK PLAY AREA - Play Area Inspector
15-Jul-19,Culture & Environment Services,Tp Ipswich,60.48, Materials and Supplies - Miscellaneous ,cement
04-Jul-19,Culture & Environment Services,Tp Ipswich,8.94, Miscellaneous Stock  - Purchases ,Grit Sand - JUBILEE PARK PLAY AREA - Landscape Team
19-Jul-19,Culture & Environment Services,Tp Ipswich,208.68, Miscellaneous Stock  - Purchases ,Cement for jubilee park
24-Jul-19,Culture & Environment Services,Tp Ipswich,23.38, Miscellaneous Stock  - Purchases ,Ballast - JUBILEE PARK PLAY AREA
01-Jul-19,Culture & Environment Services,Victoria Nurseries,75.00, Materials and Supplies - Miscellaneous ,Compost - Christchurch Hub
01-Jul-19,Culture & Environment Services,Victoria Nurseries,99.95, Materials and Supplies - Miscellaneous ,Compost - Christchurch Hub
01-Jul-19,Culture & Environment Services,Victoria Nurseries,17.00, Materials and Supplies - Miscellaneous ,Turf - Holywells Hub
08-Jul-19,Culture & Environment Services,Victoria Nurseries,122.95, Materials and Supplies - Miscellaneous ,Bedding for CCP planters - Christchurch Hub
11-Jul-19,Culture & Environment Services,Victoria Nurseries,427.08, Materials and Supplies - Miscellaneous ,Plant pots - MADE IN SUFFOLK
23-Jul-19,Culture & Environment Services,Viking Uk,32.94, Stationery ,Clip Boards
01-Jul-19,Culture & Environment Services,Waitrose Ltd,2.30, Catering/Beverages ,Milk for the away days
03-Jul-19,Culture & Environment Services,Waitrose Ltd,3.45, Catering/Beverages ,Milk for away days and conferences
26-Jul-19,Culture & Environment Services,Wh Smith,10.82, Stationery ,Laminating sheets
16-Jul-19,Culture & Environment Services,Wickes Ipswich,11.67, Equipment / Furniture / Materials ,Blades - Play Area Inspector
29-Jul-19,Culture & Environment Services,Wickes Ipswich,40.00, Equipment / Furniture / Materials ,2 square head rammers
11-Jul-19,Culture & Environment Services,Wickes Ipswich,43.30, Materials and Supplies - Miscellaneous ,bits for putting posts in
26-Jul-19,Culture & Environment Services,Wickes Ipswich,16.67, Materials and Supplies - Miscellaneous ,Post hole digger
31-Jul-19,Culture & Environment Services,Wickes Ipswich,6.58, Miscellaneous Stock  - Purchases ,Plastering Trowel - Landscape Team
05-Jul-19,Culture & Environment Services,Wilko Retail Limit,2.92, Equipment / Furniture / Materials ,Brass door bolt for mens toilets
11-Jul-19,Culture & Environment Services,Wilko Retail Limit,8.50, Equipment / Furniture / Materials ,Purchase of adheasive and caulk gun
19-Jul-19,Culture & Environment Services,Wilko Retail Limit,7.08, Equipment / Furniture / Materials ,ant powder and glue
25-Jul-19,Culture & Environment Services,Wilko Retail Limit,1.67, Equipment / Furniture / Materials ,Glasses
30-Jul-19,Culture & Environment Services,Wilko Retail Limit,10.83, Equipment / Furniture / Materials ,Air freshners
31-Jul-19,Culture & Environment Services,Wilko Retail Limit,9.58, Equipment / Furniture / Materials ,arts and crafts 0
05-Jul-19,Culture & Environment Services,Wilko Retail Limit,21.75, Materials and Supplies - Miscellaneous ,x5 Brushes & wood paint - Christchurch Hub
09-Jul-19,Culture & Environment Services,Wilko Retail Limit,13.33, Materials and Supplies - Miscellaneous ,Wood paint for CCP planters - Christchurch Hub
31-Jul-19,Culture & Environment Services,Wilko Retail Limit,2.08, Materials and Supplies - Miscellaneous ,Garden Cane - Christchurch Hub
09-Jul-19,Culture & Environment Services,Www.,39.48, Equipment / Furniture / Materials ,Purchase of replacement tv remote controls for meeting rooms
23-Jul-19,Culture & Environment Services,Www.192.Com,49.95, Equipment / Furniture / Materials ,Family Research Tokens - Grave Renewals
16-Jul-19,Culture & Environment Services,Www.Aspli.Com,50.98, Equipment / Furniture / Materials ,Ear plugs events x 400
04-Jul-19,Culture & Environment Services,Www.Banneruk.Com,19.16, Stationery ,stationery order-white notice board
08-Jul-19,Culture & Environment Services,Www.Banneruk.Com,10.18, Stationery ,Stationery for Gipping House
12-Jul-19,Culture & Environment Services,Www.Banneruk.Com,63.43, Stationery ,Visitors book and badges
16-Jul-19,Culture & Environment Services,Www.Banneruk.Com,7.74, Stationery ,Stationery for Waste Gipping House
23-Jul-19,Culture & Environment Services,Www.Banneruk.Com,7.70, Stationery ,Various stationery items
23-Jul-19,Culture & Environment Services,Www.Banneruk.Com,26.11, Stationery ,Various stationery items
24-Jul-19,Culture & Environment Services,Www.Banneruk.Com,2.45, Stationery ,Stationery for waste
30-Jul-19,Culture & Environment Services,Www.Banneruk.Com,274.89, Stationery ,stationary
31-Jul-19,Culture & Environment Services,Www.Banneruk.Com,42.60, Stationery ,stationary
11-Jul-19,Culture & Environment Services,Www.Bunzlcleaningsuppl,161.16, Cleaning Supplies ,Cleaning products for Ransomes
11-Jul-19,Culture & Environment Services,Www.Caterkwik.Co.Uk,297.94, Equipment / Furniture / Materials ,Bottle Fridge
15-Jul-19,Culture & Environment Services,Www.Clickersarchery.Co,239.42, Equipment / Furniture / Materials ,"wooden stands, target faces of various sizes for archery"
08-Jul-19,Culture & Environment Services,Www.Directhygiene.Com,37.62, Materials and Supplies - Miscellaneous ,Defib Pads
08-Jul-19,Culture & Environment Services,Www.Directhygiene.Com,37.62, Materials and Supplies - Miscellaneous ,Defib Pads
05-Jul-19,Culture & Environment Services,Www.Displaywizard.Co.U,233.99, Equipment / Furniture / Materials ,Tensa Barriers for Crown Pools - Summer Holidays
08-Jul-19,Culture & Environment Services,Www.Ers-Online.Co.Uk,49.28, Computer Consumables and other Minor IT costs ,New till and drawer.
02-Jul-19,Culture & Environment Services,Www.Firstfence.Co.Uk,597.00, Miscellaneous Stock  - Purchases ,Coupling for fencing - JUBILEE PARK PLAY AREA
03-Jul-19,Culture & Environment Services,Www.Gopak.Co.Uk,146.31, Equipment / Furniture / Materials ,Replacement stage deck for Gala Officials Stand.
10-Jul-19,Culture & Environment Services,Www.Lampshoponline.Co.Uk,42.25, Equipment / Furniture / Materials ,light bulbs
26-Jul-19,Culture & Environment Services,Www.Licencecheck.Co.Uk,3.50, Transport Costs - Miscellaneous ,Licence check credits
26-Jul-19,Culture & Environment Services,Www.Licencecheck.Co.Uk,3.50, Transport Costs - Miscellaneous ,Licence check credits
26-Jul-19,Culture & Environment Services,Www.Licencecheck.Co.Uk,3.50, Transport Costs - Miscellaneous ,Licence check credits
26-Jul-19,Culture & Environment Services,Www.Licencecheck.Co.Uk,10.50, Transport Costs - Miscellaneous ,Licence check credits
26-Jul-19,Culture & Environment Services,Www.Licencecheck.Co.Uk,7.00, Transport Costs - Miscellaneous ,Licence check credits
26-Jul-19,Culture & Environment Services,Www.Licencecheck.Co.Uk,7.00, Transport Costs - Miscellaneous ,Licence check credits
26-Jul-19,Culture & Environment Services,Www.Licencecheck.Co.Uk,3.50, Transport Costs - Miscellaneous ,Licence check credits
26-Jul-19,Culture & Environment Services,Www.Licencecheck.Co.Uk,14.00, Transport Costs - Miscellaneous ,Licence check credits
26-Jul-19,Culture & Environment Services,Www.Licencecheck.Co.Uk,3.50, Transport Costs - Miscellaneous ,Licence check credits
26-Jul-19,Culture & Environment Services,Www.Licencecheck.Co.Uk,14.00, Transport Costs - Miscellaneous ,Licence check credits
26-Jul-19,Culture & Environment Services,Www.Licencecheck.Co.Uk,3.50, Transport Costs - Miscellaneous ,Licence check credits
26-Jul-19,Culture & Environment Services,Www.Licencecheck.Co.Uk,441.00, Transport Costs - Miscellaneous ,Licence check credits
26-Jul-19,Culture & Environment Services,Www.Licencecheck.Co.Uk,10.50, Transport Costs - Miscellaneous ,Licence check credits
18-Jul-19,Culture & Environment Services,Www.Lifesaversdirect,219.17, Equipment / Furniture / Materials ,Replacement rescue torpedo bouys
09-Jul-19,Culture & Environment Services,Www.Lifesaversdirect,250.79, Training/Courses Running Costs ,"NPLQ Renewal Pack, Emergency Response Pool Pack"
19-Jul-19,Culture & Environment Services,Www.Lifesaversdirect,123.33, Training/Courses Running Costs ,EFAW New Candidate Pack x 18
29-Jul-19,Culture & Environment Services,Www.Lifesaversdirect,573.33, Training/Courses Running Costs ,rlss handbooks
29-Jul-19,Culture & Environment Services,Www.Nisbets.Com,32.98, Equipment / Furniture / Materials ,Mugs for building use
08-Jul-19,Culture & Environment Services,Www.Packagingenvironme,110.92, Catering/Beverages ,Paper packaging etc
23-Jul-19,Culture & Environment Services,Www.Partypacks.Co.Uk,249.00, Catering/Beverages ,Disposable Table clothes
10-Jul-19,Culture & Environment Services,Www.Radiotronics.Co.Uk,39.00, Equipment / Furniture / Materials ,Replacement battery and clip for 2-way radio.
10-Jul-19,Culture & Environment Services,Www.Showcomms.Co.Uk,176.01, Equipment / Furniture / Materials ,Chargers for PP Radios - Park Patrol
18-Jul-19,Culture & Environment Services,Www.Smartcompliance.Desc,625.00, Direct Transport Costs ,Digi Post pro tarcker
18-Jul-19,Culture & Environment Services,Www.Theworks.Co.Uk,20.42, Equipment / Furniture / Materials ,Arts and Crafts items for Summer Hols.
16-Jul-19,Development,Amazon.Co.Uk,7.50, Materials and Supplies - Miscellaneous ,first aid supplies
26-Jul-19,Development,Amazon.Co.Uk,11.23, Stationery ,memory card
19-Jul-19,Development,Amznmktplace,20.40, Equipment / Furniture / Materials ,health and safety
30-Jul-19,Development,Amznmktplace,31.21, Equipment / Furniture / Materials ,water glasses for Grafton House
17-Jul-19,Development,Amznmktplace Amazon.Co.Uk,7.53, Materials and Supplies - Miscellaneous ,first aid supplies
29-Jul-19,Development,Babergh District C,116.00, Capital Expenditure ,Planning discharge condition - Sproughton site
03-Jul-19,Development,Babergh District C,100.00, Non Contracted_Professional Services ,Partnership Inspections 7 Green Oak
04-Jul-19,Development,Bsi Standards,"1,103.00", Subscriptions - Service Related ,BSI Membership 1/8/19 -31/7/20
03-Jul-19,Development,Cambridge City Council,75.00, Training Expenses ,BC Enforcement Training 
01-Jul-19,Development,Dimitris,23.71, Training Expenses ,Sunday evening meal pre Manchester Facilities Forum
31-Jul-19,Development,Dyofix,90.00, Premises Costs - Miscellaneous ,Blue powder for CCP round pond
01-Jul-19,Development,Emap Publishing Ltd,153.90, Publications - Subscriptions ,Renewal for Architects Journal
08-Jul-19,Development,Fast Key Services Limi,11.03, Fixtures & Fittings ,keys for cabinet
18-Jul-19,Development,Fast Key Services Limi,6.05, Fixtures & Fittings ,spare keys
08-Jul-19,Development,Gardening Delights,74.80, Cleaning Supplies ,Bio bags for Grafton House
26-Jul-19,Development,Geodesys,81.61, Capital Expenditure ,428 birkfield dr
03-Jul-19,Development,Hilton Hotels,100.00, Training Expenses ,Hotel night stay prior to FM Forum Manchester 30.06.19
15-Jul-19,Development,Icsa Services Ltd,279.17, Employee Expenses ,subs
04-Jul-19,Development,Ihbc.Org.Uk,124.00, Employee Expenses ,IHBC Membership 19/20 
04-Jul-19,Development,Lexis Nexis,477.00, Publications - Purchase ,BC Encyclopedia update Issue 86
25-Jul-19,Development,Nochex.*utilitysearch,100.17, Capital Expenditure ,428 Birkfield dr
29-Jul-19,Development,Poundland Ltd 1719,1.79, Materials and Supplies - Miscellaneous ,Biscuits for HP meeting 30.07.19
17-Jul-19,Development,Rbi Qss Subs,384.08, Publications - Purchase ,subs
12-Jul-19,Development,Riba Services,283.40, Capital Expenditure ,JCT Cntracts for 1 Cornhill works
23-Jul-19,Development,Riba Services,213.80, Publications - Purchase ,JCT contracts
23-Jul-19,Development,Rtpi,51.67, Employee Expenses ,2019 RTPI Membership 
09-Jul-19,Development,Safetyshop,51.53, GF_Contract Repair & Maintenance ,Hot water labels for various locations
08-Jul-19,Development,Sainsburys S/mkt,2.50, Cleaning Supplies ,dw salt
29-Jul-19,Development,Sainsburys S/mkts,8.50, Subsistence & Conference/Seminar / Event Expenses ,milk
10-Jul-19,Development,Screwfix Direct,32.48, Capital Expenditure ,Security padlock & chain for Sproughton.
12-Jul-19,Development,The Range,8.29, Equipment / Furniture / Materials ,Glass jugs for Grafton House
17-Jul-19,Development,Trainline,44.60, Use Of Public Transport ,"Ipswich to London train ticket - business mtg,"
25-Jul-19,Development,Tvlicensing.Co.Uk,128.75, Licences & Other Fees ,TV License for Grafton House
26-Jul-19,Development,West Suffolk Council,150.00, Training Expenses ,BB fire essentials training
03-Jul-19,Development,"Www,eastsuffolk.Gov.Uk",230.40, Non Contracted_Professional Services ,Partnership Inspections 192.00 Kirton Road
15-Jul-19,Development,"Www,eastsuffolk.Gov.Uk",96.00, Non Contracted_Professional Services ,Partnership Inspections 16 St Martins Green
31-Jul-19,Development,Www.Haymarket.Com,250.00, Publications - Purchase ,Planning Magazine 01/08/19 - 31/7/20
10-Jul-19,Development,Www.Panelwarehouse.Com,225.81, Materials and Supplies - Miscellaneous ,Large Panel display boards for policy exhibitions
19-Jul-19,Development,Www.Uk.Edensprings.Com,24.00, Equipment / Furniture / Materials ,Grafton house cups
09-Jul-19,Development,Www.Uk.Edensprings.Com,20.40, Materials and Supplies - Miscellaneous ,paper cups
17-Jul-19,Finance & Revenues,Amazon.Co.Uk,55.62, Computer Equipment - Purchase ,2 x HP USB C Ethernet to USB Dongles
18-Jul-19,Finance & Revenues,Amz*powcan,-9.55, Equipment / Furniture / Materials ,Amazon Return.
12-Jul-19,Finance & Revenues,Amznmktplace,23.71, Computer Equipment - Purchase ,Keyboard wrist supports
26-Jul-19,Finance & Revenues,Amznmktplace,26.63, Computer Equipment - Purchase ,Tablet waterproof cases for made in Suffolk venue
12-Jul-19,Finance & Revenues,Amznmktplace,20.62, Telecommunication Costs - Business Phones ,MicroUSB Chargers
05-Jul-19,Finance & Revenues,Amznmktplace,13.66, Telecommunication Costs - Mobiles ,Protective cases for Smartphones
17-Jul-19,Finance & Revenues,Amznmktplace,8.70, Telecommunication Costs - Mobiles ,Protective case for Smartphone
19-Jul-19,Finance & Revenues,Amznmktplace,8.70, Telecommunication Costs - Mobiles ,Protective case for Smartphone
22-Jul-19,Finance & Revenues,Amznmktplace,13.66, Telecommunication Costs - Mobiles ,Protective cases for Smartphones
01-Jul-19,Finance & Revenues,Amznmktplace Amazon.Co.Uk,5.77, Telecommunication Costs - Mobiles ,Protective cases for smartphones
01-Jul-19,Finance & Revenues,Amznmktplace Amazon.Co.Uk,5.77, Telecommunication Costs - Mobiles ,Protective cases for smartphones
29-Jul-19,Finance & Revenues,Amznmktplace Amazon.Co.Uk,13.66, Telecommunication Costs - Mobiles ,Protective cases for Smartphones
25-Jul-19,Finance & Revenues,Cbt Nuggets,48.88, Training Expenses ,ICT Training
08-Jul-19,Finance & Revenues,Comms Express Ltd,118.41, Telecommunication Costs - Business Phones ,Wi-Fi Access Point
15-Jul-19,Finance & Revenues,Comms Express Ltd,553.64, Telecommunication Costs - Business Phones ,Wi-Fi Access points and POE Switches
29-Jul-19,Finance & Revenues,Comms Express Ltd,346.88, Telecommunication Costs - Business Phones ,Wi-Fi equipment
29-Jul-19,Finance & Revenues,Digicert Inc,372.00, Web Service costs ,SSL SAN certificate
02-Jul-19,Finance & Revenues,Google,5.21, Computer Software - Purchase ,API usage
04-Jul-19,Finance & Revenues,Kenable Ltd,10.38, Equipment / Furniture / Materials ,HDMI Right Angle Cables
18-Jul-19,Finance & Revenues,Kenable Ltd,45.49, Equipment / Furniture / Materials ,Agile Cables
04-Jul-19,Finance & Revenues,Klarna *coywood Limite,30.98, Computer Equipment - Purchase ,AC Adapter for ECC laptop
22-Jul-19,Finance & Revenues,Mymemory Ltd,21.99, Computer Software - Purchase ,SD Card For MS Surface
04-Jul-19,Finance & Revenues,Ncs*cima Vue Exam,110.00, Training Expenses ,CIMA Exam Fee 
24-Jul-19,Finance & Revenues,Ncs*cima Vue Exam,110.00, Training Expenses ,Exam Fees
01-Jul-19,Finance & Revenues,Paypal,91.92, Advertising/Publicity ,Domain renewals
12-Jul-19,Finance & Revenues,Paypal,"1,016.52", Computer Equipment - Purchase ,Firewall subscription renewal
25-Jul-19,Finance & Revenues,Paypal,19.98, Non Contracted_Professional Services ,Domain renewal
24-Jul-19,Finance & Revenues,Paypal,71.94, Web Service costs ,Domain renewals
09-Jul-19,Finance & Revenues,Service Fees - Fraedom Pty Ltd,383.15, Computer Software - Maintenance ,Fraedom Card usage Fees - 01/06/19 to 30/06/19
04-Jul-19,Finance & Revenues,Southend County,"1,470.00", Legal Services & Fees ,Committal summons for CTAX
11-Jul-19,Finance & Revenues,Southend County,"1,960.00", Legal Services & Fees ,Council Tax Committal Summons
18-Jul-19,Finance & Revenues,Trainline.Com,168.11, Employee Expenses ,Train ticket to London
12-Jul-19,Finance & Revenues,Www.Aat-Org.Uk,157.00, Employee Expenses ,AAT Membership Fee 
03-Jul-19,Finance & Revenues,Www.Cimaglobal.Com,280.00, Training Expenses ,CIMA Exam partial exemption fee 
08-Jul-19,Finance & Revenues,Www.Gov.Uk,8.33, Non Contracted_Professional Services ,Will and Probate docs
26-Jul-19,Housing & Community Services,Aldi 776 104,3.65, Specific Campaigns / Projects expenditure ,Icecubes for Crucial Crew thank you afternoon event
26-Jul-19,Housing & Community Services,Aldi 776 104,4.47, Specific Campaigns / Projects expenditure ,Items for Crucial Crew thank you afternoon
22-Jul-19,Housing & Community Services,Amazon.Co.Uk,16.27, Equipment / Furniture / Materials ,8 Way extension lead for TIC
29-Jul-19,Housing & Community Services,Amz*professor Blackcat,-10.57, Equipment / Furniture / Materials ,Refund for torch purchase for PDR as incorrect size
29-Jul-19,Housing & Community Services,Amzn Mktp Uk,12.96, Equipment / Furniture / Materials ,Torch 
08-Jul-19,Housing & Community Services,Amznmktplace,14.99, Computer Equipment - Purchase ,Writing Tablet
19-Jul-19,Housing & Community Services,Amznmktplace,18.99, Equipment / Furniture / Materials ,X3 4 way extension leads for TIC
22-Jul-19,Housing & Community Services,Amznmktplace,11.99, Equipment / Furniture / Materials ,Torch 
31-Jul-19,Housing & Community Services,Amznmktplace,30.79, Equipment / Furniture / Materials ,New Clock for office 
22-Jul-19,Housing & Community Services,Amznmktplace,30.99, Fixtures & Fittings ,Mobile phone cases/ Wireless doorbell for New East Villa
09-Jul-19,Housing & Community Services,Amznmktplace,79.90, Telecommunication Costs - Mobiles ,Mobile phone cases x10
09-Jul-19,Housing & Community Services,Amznmktplace,17.97, Telecommunication Costs - Mobiles ,Screen protectors x 3
22-Jul-19,Housing & Community Services,Amznmktplace,19.90, Telecommunication Costs - Mobiles ,Car chargers
22-Jul-19,Housing & Community Services,Amznmktplace,13.18, Telecommunication Costs - Mobiles ,Mobile phone cases/ Wireless doorbell for New East Villa
22-Jul-19,Housing & Community Services,Amznmktplace Amazon.Co.Uk,18.90, Fixtures & Fittings ,Toilet roll holders for New East Villa
25-Jul-19,Housing & Community Services,Amznmktplace Amazon.Co.Uk,6.99, Telecommunication Costs - Mobiles ,Mobile phone case
29-Jul-19,Housing & Community Services,Argos Retail Group,49.98, Miscellaneous Expenses ,fan for Gwent/Morecambe
23-Jul-19,Housing & Community Services,Arun Dc Elms,70.00, Non Contracted_Professional Services ,Licensing forum membership for caravan sites PSH
25-Jul-19,Housing & Community Services,Asda Stores 4278,14.43, Specific Campaigns / Projects expenditure ,Items for Crucial Crew thank you afternoon
25-Jul-19,Housing & Community Services,Asda Stores 4278,2.41, Specific Campaigns / Projects expenditure ,Items for Crucial Crew thank you afternoon
03-Jul-19,Housing & Community Services,British Standards,264.00, Equipment / Furniture / Materials ,Document for assisting planning applications
25-Jul-19,Housing & Community Services,C I H,72.00, Training Expenses ,CIH training 
12-Jul-19,Housing & Community Services,Carpetright Plc,135.90, Miscellaneous Expenses ,carpet replacement 5 Gwent 
10-Jul-19,Housing & Community Services,Cartridge Save,213.72, Stationery ,Toner Cartridges
03-Jul-19,Housing & Community Services,Chartered Institute Of En,195.00, Training Expenses ,Training course 
10-Jul-19,Housing & Community Services,Cpw Locksmiths And Securi,126.67, HRA Special Repairs & Maintenance ,60 and 190 Stratford court refit latch & gain entry fit lock
10-Jul-19,Housing & Community Services,Cpw Locksmiths And Securi,96.00, HRA Special Repairs & Maintenance ,provide lock to scheme flat 8 All Hallows Crt
15-Jul-19,Housing & Community Services,Cpw Locksmiths And Securi,23.33, HRA Special Repairs & Maintenance ,provide keys Morecambe Crt
19-Jul-19,Housing & Community Services,Cpw Locksmiths And Securi,80.00, HRA Special Repairs & Maintenance ,provide lock to scheme 10 Morecambe
22-Jul-19,Housing & Community Services,Cpw Locksmiths And Securi,20.83, HRA Special Repairs & Maintenance ,provide keys x 2 Cumberland Towers
19-Jul-19,Housing & Community Services,Easyhotel Ipswich,37.99, Services for Clients ,Temp Accom
22-Jul-19,Housing & Community Services,Easyhotel Ipswich,166.96, Services for Clients ,Temp Accom
26-Jul-19,Housing & Community Services,Easyhotel Ipswich,174.97, Services for Clients ,Temp accom
26-Jul-19,Housing & Community Services,Easyhotel Ipswich,5.00, Services for Clients ,Temp accom charges
30-Jul-19,Housing & Community Services,Easyhotel Ipswich,10.00, Services for Clients ,temp accom charges
19-Jul-19,Housing & Community Services,Easylocks Ltd,13.32, Materials and Supplies - Miscellaneous ,3514221 2x Cam locks
03-Jul-19,Housing & Community Services,Food Safety Direct,52.99, Equipment / Furniture / Materials ,PACE notebooks
04-Jul-19,Housing & Community Services,Greater Anglia T/o,96.90, Employee Expenses ,Train tickets for Tenancy Services apprentice
10-Jul-19,Housing & Community Services,Greater Anglia T/o,123.85, Miscellaneous Expenses ,Family rail tickets to Coventry to alleviate housing obligat
24-Jul-19,Housing & Community Services,Hi Ipswich Recepti,"1,154.00", Services for Clients ,Client costs for hotel rooms
24-Jul-19,Housing & Community Services,Hi Ipswich Recepti,-462.00, Services for Clients ,Credit for unused hotel room
24-Jul-19,Housing & Community Services,Hi Ipswich Recepti,-462.00, Services for Clients ,Credit for unused hotel room
05-Jul-19,Housing & Community Services,Holiday Inn,368.00, Services for Clients ,Temp Accom
16-Jul-19,Housing & Community Services,Holiday Inn,913.00, Services for Clients ,Client accommodation costs
18-Jul-19,Housing & Community Services,Holiday Inn,158.00, Services for Clients ,Hotel costs for client
18-Jul-19,Housing & Community Services,Holiday Inn,178.00, Services for Clients ,Hotel costs for client
23-Jul-19,Housing & Community Services,Holiday Inn,828.00, Services for Clients ,Hotel costs for client
29-Jul-19,Housing & Community Services,Holiday Inn,834.12, Services for Clients ,Hotel costs for client
08-Jul-19,Housing & Community Services,Ipswich Borough Co,35.00, Employee Expenses ,Parking ticket payment
10-Jul-19,Housing & Community Services,J2 Efax Plus Service,11.00, Miscellaneous Expenses ,Monthly fee for use of secure fax system (food parcels)
29-Jul-19,Housing & Community Services,Johnsons,31.50, Laundry Costs ,Dry cleaning for food team
03-Jul-19,Housing & Community Services,Magnet,60.27, Materials and Supplies - Miscellaneous , 3499023 Fire Door
16-Jul-19,Housing & Community Services,Office-Inc.Co.Uk,8.07, Stationery ,Plastic folders for Tenancy Services paperwork as per NM
18-Jul-19,Housing & Community Services,Office-Inc.Co.Uk,10.74, Stationery ,Plastic folders for TS paperwork - A4
01-Jul-19,Housing & Community Services,Possessionclaim.Go,325.00, Legal Services & Fees ,possession claim on line
01-Jul-19,Housing & Community Services,Possessionclaim.Go,325.00, Legal Services & Fees ,possession claim on line
04-Jul-19,Housing & Community Services,Possessionclaim.Go,325.00, Legal Services & Fees ,possession claim on line
04-Jul-19,Housing & Community Services,Possessionclaim.Go,325.00, Legal Services & Fees ,possession claim on line
04-Jul-19,Housing & Community Services,Possessionclaim.Go,325.00, Legal Services & Fees ,Possession claim on line
04-Jul-19,Housing & Community Services,Possessionclaim.Go,325.00, Legal Services & Fees ,Possession claim on line
04-Jul-19,Housing & Community Services,Possessionclaim.Go,325.00, Legal Services & Fees ,possession claim on line
05-Jul-19,Housing & Community Services,Possessionclaim.Go,325.00, Legal Services & Fees ,Possession claim on line
22-Jul-19,Housing & Community Services,Possessionclaim.Go,325.00, Legal Services & Fees ,Possession claim on line
22-Jul-19,Housing & Community Services,Possessionclaim.Go,325.00, Legal Services & Fees ,Possession claim on line
22-Jul-19,Housing & Community Services,Possessionclaim.Go,325.00, Legal Services & Fees ,Possession claim on line
22-Jul-19,Housing & Community Services,Possessionclaim.Go,325.00, Legal Services & Fees ,Possession claim on line
25-Jul-19,Housing & Community Services,Possessionclaim.Go,325.00, Legal Services & Fees ,possession claim on line
25-Jul-19,Housing & Community Services,Possessionclaim.Go,325.00, Legal Services & Fees ,possession claim on line
25-Jul-19,Housing & Community Services,Possessionclaim.Go,121.00, Legal Services & Fees ,Warrant application
29-Jul-19,Housing & Community Services,Possessionclaim.Go,325.00, Legal Services & Fees ,Possession claim on line
29-Jul-19,Housing & Community Services,Possessionclaim.Go,325.00, Legal Services & Fees ,Possession claim on line
26-Jul-19,Housing & Community Services,Post Office Counter,1.88, Stationery ,Recorded delivery Scheme TV licence renewal
26-Jul-19,Housing & Community Services,Post Office Counter,1.88, Stationery ,Recorded delivery Scheme TV licence renewal
08-Jul-19,Housing & Community Services,Poundland Ltd 1719,2.00, Cleaning Supplies ,Bin bags for Tourist Information Centre
25-Jul-19,Housing & Community Services,Premier Inn 44536100,"1,154.00", Services for Clients ,Client costs for hotel
29-Jul-19,Housing & Community Services,Premier Inn 44536100,-492.00, Services for Clients ,Credit for hotel costs
29-Jul-19,Housing & Community Services,Premier Inn 44536100,-492.00, Services for Clients ,Credit for hotel costs
19-Jul-19,Housing & Community Services,Premier Inn44025590,104.00, Services for Clients ,Hotel costs for client
19-Jul-19,Housing & Community Services,Premier Inn44025590,104.00, Services for Clients ,Hotel costs for client
04-Jul-19,Housing & Community Services,Premier Inn44530325,64.50, Services for Clients ,B&B costs for homeless applicant
19-Jul-19,Housing & Community Services,Premier Inn44530325,-9.50, Services for Clients ,Credit for client in Premier Inn
22-Jul-19,Housing & Community Services,Rapid Racking,46.00, Fixtures & Fittings ,Racking for New East Villa
22-Jul-19,Housing & Community Services,Rapid Racking,"1,000.00", Fixtures & Fittings ,Racking for New East Villa
22-Jul-19,Housing & Community Services,Rapid Racking,"1,000.00", Fixtures & Fittings ,Racking for New East Villa
16-Jul-19,Housing & Community Services,Ricardo-Aea Ltd,65.00, Training Expenses ,Clean Air webinar 
16-Jul-19,Housing & Community Services,Sainsburys Petrol,20.55, Equipment / Furniture / Materials ,Fuel for east Villa & Hireshop small power tools
10-Jul-19,Housing & Community Services,Sainsburys S/mkt,4.50, Housing  - other Costs ,Tenant Get Together refreshments
30-Jul-19,Housing & Community Services,Sainsburys S/mkt,37.19, Housing  - other Costs ,Bramford Lane Action Day refreshments
26-Jul-19,Housing & Community Services,Sainsburys S/mkt,2.50, Specific Campaigns / Projects expenditure ,Items for Crucial Crew thank you event
17-Jul-19,Housing & Community Services,Sainsburys S/mkts,4.20, Equipment / Furniture / Materials ,Washing up sponges & teaspoons
17-Jul-19,Housing & Community Services,Sainsburys S/mkts,16.78, Specific Campaigns / Projects expenditure ,Refreshments for Rough Sleeping Count.
02-Jul-19,Housing & Community Services,Sainsburys S/mkts,5.83, Subsistence & Conference/Seminar / Event Expenses ,Biscuits for training
25-Jul-19,Housing & Community Services,Screwfix Direct Lt,-29.16, Equipment / Furniture / Materials ,Refund for sack barrow purchased in june (Faulty) Log no 7
31-Jul-19,Housing & Community Services,Stakrak.Co.Uk,410.00, Materials and Supplies - Miscellaneous ,New Gas Bottle Storage Cage Recycling Area
10-Jul-19,Housing & Community Services,Toolstation Ltd,3.98, Fixtures & Fittings ,Engine oil 3.98. Wire Brushes 4.34
26-Jul-19,Housing & Community Services,Toolstation Ltd,22.33, HRA Special Repairs & Maintenance ,External Letterbox
10-Jul-19,Housing & Community Services,Toolstation Ltd,4.34, Materials and Supplies - Miscellaneous ,Engine oil 3.98. Wire Brushes 4.34
04-Jul-19,Housing & Community Services,Trainline,103.73, Employee Expenses ,Train tickets 
02-Jul-19,Housing & Community Services,Trainline,70.10, Use Of Public Transport ,Train ticket
10-Jul-19,Housing & Community Services,Trainline,97.50, Use Of Public Transport ,Train tickets 
11-Jul-19,Housing & Community Services,Trainline,43.43, Use Of Public Transport ,Apprentice Housing Officer London Course
22-Jul-19,Housing & Community Services,Trainline.Com,160.18, Training Expenses ,Train to Southwark for HCLIC
24-Jul-19,Housing & Community Services,Trainline.Com,67.83, Use Of Public Transport ,Apprentice Housing Officer London course
09-Jul-19,Housing & Community Services,Waitrose Ltd,2.30, Stationery ,Milk for CSC due to milk not being delivered
10-Jul-19,Housing & Community Services,Wickes Ipswich,16.00, Materials and Supplies - Miscellaneous ,Paint brush cleaner/thinners
01-Jul-19,Housing & Community Services,Www.Banneruk.Com,87.25, Stationery ,black whiteboard pens and calculators
01-Jul-19,Housing & Community Services,Www.Banneruk.Com,153.27, Stationery ,Stationery
02-Jul-19,Housing & Community Services,Www.Banneruk.Com,-5.93, Stationery ,Credit for stationery shortage
17-Jul-19,Housing & Community Services,Www.Banneruk.Com,22.67, Stationery ,Stationery
17-Jul-19,Housing & Community Services,Www.Banneruk.Com,126.07, Stationery ,Stationery
25-Jul-19,Housing & Community Services,Www.Banneruk.Com,67.15, Stationery ,"Scissors, labels, staples, cellotape, black pens, batteries"
12-Jul-19,Housing & Community Services,Www.Merlinlazer.Com,163.55, Equipment / Furniture / Materials ,Mini Moisture Meter
09-Jul-19,Housing & Community Services,Www.Midsuffolk.Gov.Uk,39.17, Training Expenses ,Lifting Equipment Awareness Training
22-Jul-19,Housing & Community Services,Www.Siteking.Co.Uk,14.98, Clothing / Uniform & Laundry ,PPE Trousers 
04-Jul-19,People & Governance,Adobe Ps Creative Cld,"1,416.00", Computer Equipment - Maintenance ,Adobe Software shared between Design and Marketing
04-Jul-19,People & Governance,Adobe Ps Creative Cld,303.36, Computer Software - Maintenance ,Adobe Software shared between Design and Marketing
04-Jul-19,People & Governance,Adobe Ps Creative Cld,354.00, Computer Software - Maintenance ,Adobe Software shared between Design and Marketing
04-Jul-19,People & Governance,Adobe Ps Creative Cld,354.00, Computer Software - Maintenance ,Adobe Software shared between Design and Marketing
10-Jul-19,People & Governance,Amazon Prime,6.66, Miscellaneous Stock  - Purchases ,"Private purchase, charged incorrectly, paid invoice 50337215"
03-Jul-19,People & Governance,Amazon.Co.Uk,19.23, Miscellaneous Stock  - Purchases ,PVC Binding Covers for the print room
25-Jul-19,People & Governance,Amznmktplace,37.46, Advertising/Publicity ,Air temperature reductors
04-Jul-19,People & Governance,Amznmktplace,20.49, Legal Services & Fees ,electric fan for member of staff
19-Jul-19,People & Governance,Amznmktplace,60.67, Miscellaneous Stock  - Purchases ,Pull Up Banner Cases for Print Room
22-Jul-19,People & Governance,Amznmktplace,12.49, Miscellaneous Stock  - Purchases ,Plastic Business Card Boxes for Print Room
05-Jul-19,People & Governance,Amznmktplace Amazon.Co.Uk,129.33, Miscellaneous Stock  - Purchases , A1 foamboard - Amazon
24-Jul-19,People & Governance,Centaur Magazine Subsc,166.67, Publications - Subscriptions ,Design publication subscription
16-Jul-19,People & Governance,Colour Craft Direct,13.08, Miscellaneous Stock  - Purchases , coloured envelopes
15-Jul-19,People & Governance,Complete Care Shop,11.58, Equipment / Furniture / Materials ,Seat cushion following DSE assessment
08-Jul-19,People & Governance,Facebk *esrxwmn8j2,99.72, Advertising/Publicity ,Facebook Advertising
08-Jul-19,People & Governance,Facebk *esrxwmn8j2,13.05, Advertising/Publicity ,Facebook Advertising
08-Jul-19,People & Governance,Facebk *esrxwmn8j2,35.09, Advertising/Publicity ,Facebook Advertising
08-Jul-19,People & Governance,Facebk *esrxwmn8j2,7.38, Advertising/Publicity ,Facebook Advertising
03-Jul-19,People & Governance,Facebk *z7gplmw7j2,264.87, Advertising/Publicity ,Facebook Advertising
03-Jul-19,People & Governance,Facebk *z7gplmw7j2,34.87, Advertising/Publicity ,Facebook Advertising
03-Jul-19,People & Governance,Facebk *z7gplmw7j2,18.82, Advertising/Publicity ,Facebook Advertising
03-Jul-19,People & Governance,Facebk *z7gplmw7j2,164.77, Advertising/Publicity ,Facebook Advertising
15-Jul-19,People & Governance,Facebk Lrjtvmwkw2,116.40, Advertising/Publicity ,Crafted Classique FB Advertising spend by Crafted
22-Jul-19,People & Governance,Google,13.30, Advertising/Publicity ,Open Air Cinema PPC campaign
11-Jul-19,People & Governance,Helloprint,54.47, Advertising/Publicity , print purchase for Regent
05-Jul-19,People & Governance,Helloprint,"1,170.22", Printing Costs ,External Printing of Tenant Times
18-Jul-19,People & Governance,Helloprint,189.78, Printing Costs ,"Pull up Banners for Waste, being charged to SCC"
19-Jul-19,People & Governance,Helloprint,79.07, Printing Costs ,Marvellous Machines A5 Flyers printed externally
24-Jul-19,People & Governance,Helloprint,39.33, Printing Costs ,Vinyl Banner for external customer
30-Jul-19,People & Governance,Helloprint,36.85, Printing Costs ,Replacement Banner for Pride Event
25-Jul-19,People & Governance,Idealenvelo,210.00, Miscellaneous Stock  - Purchases ,Yellow Envelopes for Ed Sheeran Concert
19-Jul-19,People & Governance,Ipswich Bc,-29.17, Mayoral Related Expenditure ,returned payment
04-Jul-19,People & Governance,Ipswich Borough Co,29.17, Mayoral Related Expenditure ,Mayoral Parking charges
23-Jul-19,People & Governance,Johnsons,13.33, Mayoral Related Expenditure ,Loops on Mayor's Jackets
15-Jul-19,People & Governance,Mailchimp,455.47, Subscriptions - Service Related ,Mailchimp
29-Jul-19,People & Governance,Mailchimp,202.72, Subscriptions - Service Related ,MailChimp Account
04-Jul-19,People & Governance,Marks&spencer Plc,17.94, Miscellaneous Functions & Events ,cake for afternoon tea
25-Jul-19,People & Governance,Marks&spencer Plc,16.90, Miscellaneous Functions & Events ,"Recorder event, cake"
08-Jul-19,People & Governance,Parcel2go_uk,20.86, Advertising/Publicity ,Brochure Delivery
09-Jul-19,People & Governance,Ringgo,3.67, Advertising/Publicity ,Parking for Suffolk Culture Network BSE
12-Jul-19,People & Governance,Sainsburys Petrol,38.33, Direct Transport Costs ,fuel for mayors car
12-Jul-19,People & Governance,Sainsburys S/mkt,12.50, Miscellaneous Functions & Events ,flowers for diamond wedding
11-Jul-19,People & Governance,Sainsburys S/mkt,8.62, Specific Campaigns / Projects expenditure ,Biscuits 
31-Jul-19,People & Governance,Signs For You Ltd,63.00, Printing Costs ,Museum Mesh Banner
17-Jul-19,People & Governance,"Sprout Social, Inc",747.51, Subscriptions - Service Related ,Social Media Management
10-Jul-19,People & Governance,Stationery Office Book,25.36, Advertising/Publicity ,London Gazette advert IP13.302
15-Jul-19,People & Governance,Stk*bigstockphoto.Com,59.00, Miscellaneous Stock  - Purchases ,Image Credits for Design
01-Jul-19,People & Governance,Trainline,22.76, Use Of Public Transport ,Travel to Norwich for NALEP Cultural marketing meeting
09-Jul-19,People & Governance,Waitrose Ltd,2.08, Miscellaneous Functions & Events ,fruit squash for mayors parlour
10-Jul-19,People & Governance,Waitrose Ltd,1.74, Miscellaneous Functions & Events ,toilet paper for mayors parlour
24-Jul-19,People & Governance,Waitrose Ltd,3.22, Miscellaneous Functions & Events ,milk and tea bags for parlour
25-Jul-19,People & Governance,Waitrose Ltd,1.05, Miscellaneous Functions & Events ,icing sugar for parlour events
31-Jul-19,People & Governance,Waitrose Ltd,2.06, Miscellaneous Functions & Events ,biscuits for lets students
30-Jul-19,People & Governance,Wilko Retail Limit,16.67, Miscellaneous Functions & Events ,Picture frames for Judge portraits
12-Jul-19,People & Governance,Www.Accounts@iia.Org.U,120.00, Training Expenses ,Online CPD training for Senior Auditor
03-Jul-19,People & Governance,Www.Banneruk.Com,480.43, Computer Consumables and other Minor IT costs , HP 652Ablk 654M toners
18-Jul-19,People & Governance,Www.Banneruk.Com,72.74, Computer Consumables and other Minor IT costs , MLT-D111S toner
24-Jul-19,People & Governance,Www.Banneruk.Com,66.97, Computer Consumables and other Minor IT costs ,Epson 29XL multi
25-Jul-19,People & Governance,Www.Banneruk.Com,69.07, Computer Consumables and other Minor IT costs , Canon712 toner
25-Jul-19,People & Governance,Www.Banneruk.Com,91.53, Computer Consumables and other Minor IT costs , 17A HP laserjet toner
30-Jul-19,People & Governance,Www.Banneruk.Com,275.00, Computer Consumables and other Minor IT costs ,Part order wide format inks (x2) for print room
30-Jul-19,People & Governance,Www.Banneruk.Com,412.50, Computer Consumables and other Minor IT costs ,Part order wide format inks (X3) for print room
31-Jul-19,People & Governance,Www.Banneruk.Com,59.80, Computer Consumables and other Minor IT costs , canon 540 /541 multi X2
31-Jul-19,People & Governance,Www.Banneruk.Com,97.56, Computer Consumables and other Minor IT costs ,Riso inks for print room
26-Jul-19,People & Governance,Www.Ipswichregent.Com,41.67, Advertising/Publicity ,Crown's First Birthday Customer Prize - Gift Card
05-Jul-19,People & Governance,Www.Ovendenpapers.,328.17, Miscellaneous Stock  - Purchases , 5 rolls wide format photo paper
09-Jul-19,People & Governance,Www.Paper.Co.Uk,122.78, Miscellaneous Stock  - Purchases ,coloured paper from Premier Paper
25-Jul-19,People & Governance,Www.Paper.Co.Uk,352.72, Miscellaneous Stock  - Purchases ,Paper Supply for the Print Room
